bitfinex-derivatives/quotes_ETHF0:USTF0_20250502
["timestamp","ask_amount","ask_price","bid_price","bid_amount"]
[1746208874399,7.6142059,1853.4,1853.3,1.07877]
[1746208875800,1.07877,1853.3,1853.2,4.28661]
[1746208875999,4.0192559,1853.3,1853.2,1.07881]
[1746208876199,7.7152559,1853.3,1853.2,1.07881]
[1746208876796,6.6364859,1853.3,1853.2,1.07881]
[1746208877000,5.8468859,1853.3,1853.2,1.07881]
[1746208877198,0.4390859,1853.3,1853.2,6.71931]
[1746208878192,0.4390859,1853.3,1853.2,10.41531]
[1746208879095,0.4390859,1853.3,1853.2,6.71931]
[1746208879896,0.4390859,1853.3,1853.2,11.71931]
[1746208880096,0.4390859,1853.3,1853.2,15.41531]
[1746208881301,0.4390859,1853.3,1853.2,6.71931]
[1746208886003,0.4390859,1853.3,1853.2,11.71931]
[1746208886203,1.8e-06,1853.3,1853.2,11.71931]
[1746208886609,2.5382,1853.7,1853.6,1.0786]
[1746208887109,6.2342,1853.7,1853.6,2.7769]
[1746208887511,6.2342,1853.7,1853.6,3.6107]
[1746208888110,2.5382,1853.7,1853.6,3.6107]
[1746208888610,0.8412,1853.9,1853.8,1.07848]
[1746208888814,1.7005,1853.9,1853.8,4.28628]
[1746208889309,5.3965,1853.9,1853.8,4.28628]
[1746208892001,7.0973,1853.9,1853.8,4.28628]
[1746208894516,8.17572,1853.9,1853.8,4.28628]
[1746208894716,13.17572,1853.9,1853.8,3.2078]
[1746208894910,1.0786,1853.7,1853.6,1.07856]
[1746208895418,7.6812,1853.7,1853.6,1.07856]
[1746208896212,11.3772,1853.7,1853.6,1.07856]
[1746208896912,6.3772,1853.7,1853.6,1.07856]
[1746208897312,5.2986,1853.7,1853.6,1.07856]
[1746208898316,5.7344474,1853.7,1853.6,1.07856]
[1746208900224,6.8129874,1853.7,1853.6,1.07856]
[1746208904027,6.8129874,1853.7,1853.4,3.2078]
[1746208904028,8.4308374,1853.7,1853.4,3.2078]
[1746208904327,1.07866,1853.5,1853.4,4.2865]
[1746208904720,4.8460074,1853.5,1853.4,4.2865]
[1746208905019,4.8460074,1853.5,1853.4,3.2078]
[1746208905215,1.07877,1853.3,1853.2,4.28659]
[1746208905420,7.4633474,1853.5,1853.1,8.22443826]
[1746208905421,1.07883,1853.2,1853.1,8.22443826]
[1746208905621,1.5146774,1853.2,1853.1,7.14558826]
[1746208905821,1.5146774,1853.2,1853.1,8.22447826]
[1746208906017,2.1731474,1853.2,1853.1,8.22447826]
[1746208906225,6.9479774,1853.2,1853.1,8.22447826]
[1746208907226,3.2519774,1853.2,1853.1,8.22447826]
[1746208907821,3.2519774,1853.2,1853.1,7.14558826]
[1746208908118,3.2519774,1853.2,1853.1,8.22447826]
[1746208908119,6.9479774,1853.2,1853.1,8.22447826]
[1746208908822,5.8691474,1853.2,1853.1,8.22447826]
[1746208909224,5.8691474,1853.2,1853.1,1.07889]
[1746208910131,6.9479774,1853.2,1853.1,1.07889]
[1746208910920,1.07895,1853.1,1853.0,1.07891]
[1746208911228,4.8827974,1853.1,1853.0,1.07891]
[1746208911425,1.07895,1853.0,1852.9,4.28676]
[1746208911727,3.1761974,1853.0,1852.9,4.28676]
[1746208912225,5.7932474,1853.0,1852.9,4.28676]
[1746208913330,6.8721974,1853.0,1852.9,4.28676]
[1746208914328,6.8721974,1853.0,1852.9,3.2078]
[1746208915228,6.8721974,1853.0,1852.9,4.28681]
[1746208915629,6.8721974,1853.0,1852.9,1.07901]
[1746208916932,1.07909,1852.9,1852.8,1.07904]
[1746208917130,1.07912,1852.8,1852.7,1.07909]
[1746208917329,1.5149674,1852.8,1852.7,1.07909]
[1746208917633,1.07912,1852.7,1852.6,1.91844]
[1746208917829,1.87562,1852.7,1852.6,1.07914]
[1746208918022,4.0037674,1852.7,1852.6,1.07914]
[1746208918222,6.6206474,1852.7,1852.6,1.07914]
[1746208918432,6.6206474,1852.7,1852.6,2.81494]
[1746208919223,7.6997674,1852.7,1852.6,2.81494]
[1746208919533,6.6206474,1852.7,1852.6,2.81494]
[1746208919831,7.6997674,1852.7,1852.6,2.81494]
[1746208920231,7.6997674,1852.7,1852.6,1.07914]
[1746208920419,1.07918,1852.6,1852.5,42.7212]
[1746208920624,3.2073274,1852.6,1852.5,42.7212]
[1746208920824,4.0086274,1852.6,1852.5,1.9212]
[1746208921027,1.07924,1852.5,1852.4,6.85785]
[1746208921232,2.78874,1852.5,1852.4,1.07925]
[1746208921926,3.2245874,1852.5,1852.4,1.07925]
[1746208922128,6.9205874,1852.5,1852.4,1.07925]
[1746208922323,5.8413474,1852.5,1852.4,1.07925]
[1746208922534,6.9205874,1852.5,1852.4,2.80745]
[1746208924533,6.9205874,1852.5,1852.4,1.07925]
[1746208925641,5.8413474,1852.5,1852.4,1.07925]
[1746208926133,6.9205874,1852.5,1852.4,2.80455]
[1746208926336,4.1318474,1852.5,1852.4,2.80455]
[1746208926734,4.13042553,1852.5,1852.4,2.80455]
[1746208927137,0.43442553,1852.5,1852.4,2.80455]
[1746208927925,0.43442553,1852.5,1852.4,6.01235]
[1746208930138,0.43442553,1852.5,1852.4,6.84685]
[1746208930436,0.43442553,1852.5,1852.4,11.84685]
[1746208930632,5.53e-06,1852.5,1852.4,11.84685]
[1746208930932,4.0589,1853.2,1853.1,1.07889]
[1746208931140,6.9038,1853.2,1853.1,41.87889]
[1746208931531,3.696,1853.2,1853.1,53.62569]
[1746208931733,2.60543,1853.2,1853.1,53.62569]
[1746208931935,1.47147,1853.2,1853.1,53.62569]
[1746208932239,10.56308922,1853.7,1853.6,1.0786]
[1746208932437,8.91718922,1853.7,1853.6,1.0786]
[1746208932644,2.72436,1853.9,1853.5,6.6136]
[1746208932836,2.72436,1853.9,1853.8,1.07848]
[1746208933234,6.42036,1853.9,1853.8,1.07848]
[1746208933731,5.3419,1853.9,1853.8,1.07848]
[1746208934033,6.42032,1853.9,1853.8,1.07848]
[1746208935838,1.07851,1853.8,1853.7,1.07852]
[1746208936140,5.3957,1853.8,1853.7,1.07852]
[1746208936541,5.3957,1853.8,1853.7,2.82382]
[1746208936542,3.696,1853.8,1853.7,2.82382]
[1746208937233,1.5904,1854.0,1853.9,1.07842]
[1746208938343,5.2864,1854.0,1853.9,1.07842]
[1746208941633,6.36477,1854.0,1853.9,1.07842]
[1746208942638,5.2864,1854.0,1853.9,1.07842]
[1746208942837,1.07842,1853.9,1853.8,3.2078]
[1746208943145,6.81392973,1853.9,1853.8,4.28628]
[1746208943439,1.07848,1853.8,1853.7,3.538]
[1746208943639,2.68958,1853.8,1853.7,3.538]
[1746208943834,2.68958,1853.8,1853.6,3.2078]
[1746208943835,1.07854,1853.7,1853.6,3.2078]
[1746208944042,1.0786,1853.6,1853.5,1.07862]
[1746208944445,1.6111,1853.6,1853.5,1.07862]
[1746208944636,2.03950973,1853.6,1853.5,1.07862]
[1746208944837,3.11810973,1853.6,1853.5,1.07862]
[1746208945032,6.81414973,1853.6,1853.5,1.07866]
[1746208946844,5.73550973,1853.6,1853.5,1.07866]
[1746208947441,6.81410973,1853.6,1853.5,1.07866]
[1746208948046,5.73550973,1853.6,1853.5,1.07866]
[1746208948236,4.12440973,1853.6,1853.5,4.28646]
[1746208951650,5.20300973,1853.6,1853.5,4.28646]
[1746208951847,1.07872,1853.4,1853.3,1.07874]
[1746208952148,5.20312973,1853.4,1853.3,1.07874]
[1746208952346,4.12440973,1853.4,1853.3,1.07874]
[1746208952547,4.12440973,1853.4,1853.3,2.71314]
[1746208953050,4.12485195,1853.4,1853.3,2.71314]
[1746208953845,4.12485195,1853.4,1853.3,5.92094]
[1746208954152,0.42885195,1853.4,1853.3,5.92094]
[1746208954448,1.5868,1853.5,1853.4,1.07872]
[1746208954651,0.42927899,1853.5,1853.4,2.68112]
[1746208955452,6.4442,1853.6,1853.5,1.07866]
[1746208955749,5.3656,1853.6,1853.5,2.68106]
[1746208955950,3.696,1853.6,1853.5,5.88886]
[1746208956342,4.1255555,1853.6,1853.5,5.88886]
[1746208957151,0.4295555,1853.6,1853.5,5.88886]
[1746208957352,0.4295555,1853.6,1853.5,9.41686]
[1746208959250,4.1255555,1853.6,1853.5,9.41686]
[1746208959754,4.12686927,1853.6,1853.5,9.41686]
[1746208960246,1.5844,1853.7,1853.6,1.0786]
[1746208960447,2.76087,1853.9,1853.8,1.07848]
[1746208960648,4.84111411,1853.9,1853.8,1.07848]
[1746208960853,4.40967,1853.9,1853.8,1.07848]
[1746208961052,4.841112,1853.9,1853.8,1.07848]
[1746208961353,8.537112,1853.9,1853.8,1.07848]
[1746208962154,7.458642,1853.9,1853.8,1.07848]
[1746208962355,7.45875098,1853.9,1853.8,1.07848]
[1746208962955,7.0272,1853.9,1853.8,1.07848]
[1746208963155,7.45874792,1853.9,1853.8,1.07848]
[1746208963958,8.53716792,1853.9,1853.8,1.07848]
[1746208964558,8.10562,1853.9,1853.8,1.07848]
[1746208964855,8.53713529,1853.9,1853.8,1.07848]
[1746208966556,7.45871529,1853.9,1853.8,1.07848]
[1746208966959,8.53713529,1853.9,1853.8,1.07848]
[1746208968449,8.53713529,1853.9,1853.8,4.28628]
[1746208968955,8.53713529,1853.9,1853.8,3.2078]
[1746208969657,1.07848,1853.8,1853.7,1.07851]
[1746208969956,2.78878,1853.8,1853.7,1.07851]
[1746208970158,6.48478,1853.8,1853.7,1.07851]
[1746208970454,6.91629529,1853.8,1853.7,1.07851]
[1746208971958,1.07854,1853.7,1853.6,1.90655]
[1746208972160,6.91635529,1853.7,1853.6,1.07855]
[1746208973461,5.83781529,1853.7,1853.6,1.07855]
[1746208973760,6.91635529,1853.7,1853.6,1.07855]
[1746208973963,5.83781529,1853.7,1853.6,1.07855]
[1746208974660,5.83781529,1853.7,1853.6,2.81205]
[1746208975061,3.22035529,1853.7,1853.6,2.81205]
[1746208975263,2.14181529,1853.7,1853.6,2.81205]
[1746208976064,5.83781529,1853.7,1853.6,2.81205]
[1746208976363,6.91635529,1853.7,1853.6,2.81205]
[1746208977462,5.83781529,1853.7,1853.6,6.01985]
[1746208978467,4.12751529,1853.7,1853.6,6.01985]
[1746208979260,0.43151529,1853.7,1853.6,6.01985]
[1746208980060,6.01035529,1853.7,1853.6,1.07855]
[1746208980256,4.93181529,1853.7,1853.6,1.07855]
[1746208980761,6.64131529,1853.7,1853.6,1.07855]
[1746208981060,7.71985529,1853.7,1853.6,4.28635]
[1746208981760,1.07866,1853.5,1853.4,4.58363]
[1746208981967,1.07866,1853.5,1853.4,1.07863]
[1746208982160,4.77466,1853.5,1853.4,1.07863]
[1746208982366,6.05287529,1853.5,1853.4,1.07863]
[1746208982966,4.97421529,1853.5,1853.4,1.07863]
[1746208983360,6.64241529,1853.5,1853.4,1.07863]
[1746208983563,6.64241529,1853.5,1853.4,2.70313]
[1746208983967,7.72107529,1853.5,1853.4,2.70313]
[1746208984164,4.02507529,1853.5,1853.4,2.70313]
[1746208984468,4.02507529,1853.5,1853.4,1.07863]
[1746208984666,2.94641529,1853.5,1853.4,1.07863]
[1746208985170,6.64241529,1853.5,1853.4,1.07863]
[1746208987063,5.79571529,1853.5,1853.4,1.07863]
[1746208987265,2.09971529,1853.5,1853.4,3.65063]
[1746208987569,3.17837529,1853.5,1853.4,3.65063]
[1746208987770,2.09971529,1853.5,1853.4,3.65063]
[1746208989071,3.17837529,1853.5,1853.4,3.65063]
[1746208990469,3.17837529,1853.5,1853.4,1.07863]
[1746208990673,1.07872,1853.4,1853.3,7.79152]
[1746208990972,4.04083529,1853.4,1853.3,7.79152]
[1746208991271,7.73683529,1853.4,1853.3,7.79152]
[1746208993579,6.65811529,1853.4,1853.3,7.79152]
[1746208994773,7.73683529,1853.4,1853.3,7.79152]
[1746208997470,7.73683529,1853.4,1853.3,6.7128]
[1746208997674,7.73683529,1853.4,1853.3,4.58377]
[1746209000676,6.65811529,1853.4,1853.3,4.58377]
[1746209000870,7.73683529,1853.4,1853.3,4.58377]
[1746209005279,7.73695142,1853.4,1853.3,4.58377]
[1746209005578,7.30532,1853.4,1853.3,4.58377]
[1746209005777,7.73695192,1853.4,1853.3,4.58377]
[1746209005979,7.73695147,1853.4,1853.3,4.58377]
[1746209007565,6.65823147,1853.4,1853.3,4.58377]
[1746209007772,5.81103147,1853.4,1853.3,7.13157]
[1746209007975,2.82042147,1853.4,1853.3,7.13157]
[1746209008176,1.47e-06,1853.4,1853.3,12.13157]
[1746209008367,3.51942,1853.9,1853.8,1.07848]
[1746209008573,3.51942,1853.9,1853.8,4.28628]
[1746209009270,6.137,1853.9,1853.8,4.28628]
[1746209010182,7.21542,1853.9,1853.8,4.28628]
[1746209011883,6.137,1853.9,1853.7,1.07848]
[1746209012083,2.65702,1853.8,1853.7,1.07848]
[1746209013076,6.35302,1853.8,1853.7,1.07848]
[1746209014585,5.2745,1853.8,1853.7,1.07848]
[1746209014787,6.35298,1853.8,1853.7,1.07848]
[1746209016486,6.35298,1853.8,1853.7,3.63798]
[1746209016878,6.35298,1853.8,1853.7,1.94578]
[1746209017686,6.35298,1853.8,1853.7,1.94584]
[1746209018191,6.35298,1853.8,1853.7,0.8673]
[1746209018392,6.35298,1853.8,1853.7,1.94584]
[1746209018683,1.07854,1853.7,1853.6,7.79135]
[1746209018881,2.70984,1853.7,1853.6,7.7914]
[1746209019082,6.40584,1853.7,1853.6,3.2078]
[1746209019289,6.40584,1853.7,1853.6,4.2864]
[1746209019492,6.40584,1853.7,1853.6,3.2078]
[1746209020181,1.07866,1853.5,1853.4,1.07867]
[1746209020483,1.50574538,1853.5,1853.4,1.07867]
[1746209020688,1.07872,1853.4,1853.3,5.43084]
[1746209020986,2.71002,1853.4,1853.3,1.92584]
[1746209021286,6.40602,1853.4,1853.3,1.92584]
[1746209021480,6.83310538,1853.4,1853.3,1.92584]
[1746209021882,5.75438538,1853.4,1853.3,1.92584]
[1746209022087,4.12308538,1853.4,1853.3,3.55374]
[1746209023288,0.42708538,1853.4,1853.3,3.55374]
[1746209026490,0.42708538,1853.4,1853.3,8.55374]
[1746209027689,0.42708538,1853.4,1853.3,3.55374]
[1746209037700,1.6772,1853.7,1853.6,1.0786]
[1746209037893,1.6772,1853.7,1853.6,4.2864]
[1746209038295,1.6772,1853.7,1853.6,6.8306]
[1746209041597,0.8155,1853.8,1853.7,1.07854]
[1746209041795,2.4654,1853.8,1853.7,2.80694]
[1746209042997,12.12498922,1854.4,1853.8,2.69621]
[1746209043300,2.4063,1854.2,1854.1,1.07831]
[1746209043699,12.61318922,1854.4,1854.3,1.07819]
[1746209044302,2.4063,1854.5,1854.4,1.07813]
[1746209044996,3.48438,1854.5,1854.4,1.07813]
[1746209045195,2.4063,1854.5,1854.4,1.07813]
[1746209046210,2.4063,1854.5,1854.4,2.78513]
[1746209046501,8.91718922,1854.6,1854.5,1.07808]
[1746209046805,10.64588922,1854.6,1854.5,9.49588]
[1746209048999,1.7287,1854.6,1854.5,9.49588]
[1746209049397,0.58843,1854.6,1854.5,9.49588]
[1746209049701,0.8626,1854.8,1854.7,1.07796]
[1746209049900,0.8626,1854.8,1854.7,45.08576]
[1746209050301,1.9405,1854.8,1854.7,45.08576]
[1746209050501,1.9405,1854.8,1854.7,48.58776]
[1746209051105,5.6365,1854.8,1854.7,48.58776]
[1746209053305,1.9405,1854.8,1854.7,48.58776]
[1746209054199,0.8626,1854.8,1854.7,48.58776]
[1746209054906,2.5565,1854.8,1854.7,48.58776]
[1746209055105,3.6344,1854.8,1854.7,48.58776]
[1746209055408,3.6344,1854.8,1854.7,44.302]
[1746209055907,3.6344,1854.8,1854.7,45.37996]
[1746209056104,7.3304,1854.8,1854.7,45.37996]
[1746209056503,7.3304,1854.8,1854.7,44.302]
[1746209056899,7.3304,1854.8,1854.7,3.502]
[1746209057099,7.3304,1854.8,1854.7,4.57996]
[1746209057404,7.3304,1854.8,1854.7,3.502]
[1746209058108,10.5382,1854.8,1854.7,3.502]
[1746209059208,10.5382,1854.8,1854.7,4.57996]
[1746209059409,9.4603,1854.8,1854.7,4.57996]
[1746209059798,3.696,1854.8,1854.7,7.78776]
[1746209060217,3.4086,1855.0,1854.9,1.07784]
[1746209060713,4.48638,1855.0,1854.9,1.07784]
[1746209061009,3.4086,1855.0,1854.9,1.07784]
[1746209061214,8.18238,1855.0,1854.9,1.07784]
[1746209061410,8.18238,1855.0,1854.9,4.28564]
[1746209062007,8.18238,1855.0,1854.9,1.07784]
[1746209062207,7.1046,1855.0,1854.9,4.28564]
[1746209062504,8.18238,1855.0,1854.9,1.07784]
[1746209062812,1.07784,1854.9,1854.8,1.07784]
[1746209063006,1.0779,1854.8,1854.7,3.502]
[1746209063212,1.0779,1854.8,1854.7,4.57992]
[1746209063410,2.72639,1854.9,1854.8,1.0779]
[1746209063612,1.6485,1854.9,1854.8,1.0779]
[1746209064213,5.3445,1854.9,1854.8,1.0779]
[1746209064512,6.42234,1854.9,1854.8,1.0779]
[1746209069416,6.42234,1854.9,1854.8,2.8047]
[1746209070711,5.3445,1854.9,1854.8,2.8047]
[1746209070913,6.42234,1854.9,1854.8,3.596]
[1746209071717,6.42234,1854.9,1854.8,2.8047]
[1746209072212,2.72634,1854.9,1854.8,2.8047]
[1746209072413,1.0779,1854.8,1854.7,8.08442]
[1746209072613,2.6733,1854.8,1854.7,7.0065]
[1746209072911,2.6733,1854.8,1854.7,8.08446]
[1746209073116,6.3693,1854.8,1854.7,8.08446]
[1746209073314,6.3693,1854.8,1854.7,5.92786]
[1746209074920,6.3693,1854.8,1854.7,4.8499]
[1746209075419,6.3693,1854.8,1854.7,1.3479]
[1746209075907,1.07796,1854.7,1854.6,1.07801]
[1746209076107,8.10186,1854.7,1854.6,2.1567]
[1746209076412,8.53945936,1854.7,1854.6,3.23472]
[1746209077015,8.53945936,1854.7,1854.6,4.96692]
[1746209078522,8.53945936,1854.7,1854.6,2.81022]
[1746209082327,4.13359936,1854.7,1854.6,2.81022]
[1746209082517,4.13359936,1854.7,1854.6,6.01802]
[1746209082916,4.13359936,1854.7,1854.6,2.81022]
[1746209083124,0.43759936,1854.7,1854.6,2.81022]
[1746209084325,1.51555936,1854.7,1854.6,2.81022]
[1746209084922,0.43759936,1854.7,1854.6,2.81022]
[1746209088226,5.21155936,1854.7,1854.6,2.81022]
[1746209088426,4.13359936,1854.7,1854.6,2.81022]
[1746209096032,8.42375936,1854.7,1854.6,2.81022]
[1746209096335,8.42375936,1854.7,1854.6,1.07802]
[1746209097746,7.34579936,1854.7,1854.6,1.07802]
[1746209097923,8.42375936,1854.7,1854.6,1.07802]
[1746209098429,7.34579936,1854.7,1854.6,1.07802]
[1746209098632,1.07802,1854.6,1854.5,3.5049]
[1746209098840,1.07819,1854.3,1854.2,7.14558826]
[1746209099133,8.41958936,1854.3,1854.2,7.14558826]
[1746209099334,13.41958936,1854.3,1854.2,7.14558826]
[1746209099533,15.10008936,1854.3,1854.2,7.14558826]
[1746209102636,16.78568936,1854.3,1854.2,7.14558826]
[1746209102833,16.78568936,1854.3,1854.1,2.2251]
[1746209102834,1.07825,1854.2,1854.1,2.2251]
[1746209103036,6.35955,1854.2,1854.1,2.2251]
[1746209103231,6.79714936,1854.2,1854.1,2.2251]
[1746209103431,10.00494936,1854.2,1854.1,2.2251]
[1746209103632,6.79714936,1854.2,1854.1,2.2251]
[1746209103936,10.00494936,1854.2,1854.1,2.2251]
[1746209104239,6.79714936,1854.2,1854.1,2.2251]
[1746209105138,6.79714936,1854.2,1854.1,2.1573]
[1746209105638,1.07837,1854.0,1853.9,1.07841]
[1746209105839,1.07842,1853.9,1853.8,5.98584]
[1746209106038,2.82872,1853.9,1853.8,5.98584]
[1746209106241,1.07872,1853.4,1853.3,7.14558826]
[1746209106537,4.72411936,1853.4,1853.3,7.14558826]
[1746209107034,8.03831936,1853.4,1853.3,7.14558826]
[1746209107230,9.83738289,1853.4,1853.3,7.14558826]
[1746209107434,4.13178289,1853.4,1853.3,1.07877]
[1746209107833,3.696,1853.4,1853.3,4.43457]
[1746209108033,4.13165331,1853.4,1853.3,4.43457]
[1746209108234,0.43565331,1853.4,1853.3,4.43457]
[1746209108740,0.43565331,1853.4,1853.3,9.43457]
[1746209109333,0.43565331,1853.4,1853.3,50.23457]
[1746209109539,4.28622,1854.0,1853.6,2.69642]
[1746209109737,5.96372,1854.0,1853.9,1.07842]
[1746209109935,3.64309001,1854.0,1853.9,1.07842]
[1746209110130,7.33909001,1854.0,1853.9,1.07842]
[1746209110330,7.33906337,1854.0,1853.9,1.07842]
[1746209110741,7.33900944,1854.0,1853.9,1.07842]
[1746209111240,7.33900944,1854.0,1853.9,6.07842]
[1746209111537,4.13110678,1854.0,1853.9,9.28622]
[1746209111938,4.13110678,1854.0,1853.9,10.97112]
[1746209112139,0.43510678,1854.0,1853.9,10.97112]
[1746209112443,1.0782,1854.3,1854.2,1.07825]
[1746209112646,5.90622,1854.5,1854.4,1.07813]
[1746209112839,4.8281,1854.5,1854.4,1.07813]
[1746209113034,8.5241,1854.5,1854.4,1.07813]
[1746209113239,10.03723999,1854.5,1854.4,1.07813]
[1746209113439,8.95915999,1854.5,1854.4,2.73903]
[1746209113641,7.33881437,1854.5,1854.4,2.73903]
[1746209114140,0.43501437,1854.5,1854.4,5.94683]
[1746209115145,4.13101437,1854.5,1854.4,5.94683]
[1746209117343,4.13101437,1854.5,1854.4,9.44583]
[1746209118156,0.43501437,1854.5,1854.4,9.44583]
[1746209122761,0.43501437,1854.5,1854.4,50.24583]
[1746209128066,1.07797,1854.7,1854.6,1.07802]
[1746209128367,2.69794,1854.8,1854.7,1.07796]
[1746209128558,2.05511936,1854.8,1854.7,1.07796]
[1746209128760,0.43511936,1854.8,1854.7,1.07796]
[1746209128965,0.43511936,1854.8,1854.7,2.66196]
[1746209129164,4.13111936,1854.8,1854.7,2.66196]
[1746209129360,4.13111936,1854.8,1854.7,6.18496]
[1746209130060,4.13111936,1854.8,1854.7,46.98496]
[1746209130268,0.43511936,1854.8,1854.7,46.98496]
[1746209131567,1.51301936,1854.8,1854.7,45.40096]
[1746209131767,3.25351936,1854.8,1854.7,45.40096]
[1746209131971,3.25351936,1854.8,1854.7,44.323]
[1746209132161,6.94951936,1854.8,1854.7,40.8]
[1746209132467,6.94951936,1854.8,1854.7,41.87796]
[1746209132867,1.07808,1854.5,1854.4,2.7969]
[1746209133257,4.77408,1854.5,1854.4,1.935]
[1746209133463,5.20919936,1854.5,1854.4,41.8781]
[1746209133664,6.94969936,1854.5,1854.4,41.8781]
[1746209133970,5.87161936,1854.5,1854.4,41.8781]
[1746209134271,6.94969936,1854.5,1854.4,41.8781]
[1746209134972,5.87161936,1854.5,1854.4,41.8781]
[1746209135874,6.94969936,1854.5,1854.4,41.8781]
[1746209136172,1.07813,1854.4,1854.3,3.23526]
[1746209136368,3.11814936,1854.4,1854.3,2.1571]
[1746209136562,3.11814936,1854.4,1854.3,42.9571]
[1746209137174,6.81414936,1854.4,1854.3,2.1571]
[1746209137873,5.73601936,1854.4,1854.3,3.23529]
[1746209138072,6.81414936,1854.4,1854.3,3.23529]
[1746209138974,6.81414936,1854.4,1854.3,1.07819]
[1746209141671,5.73601936,1854.4,1854.3,1.07819]
[1746209141874,1.07819,1854.3,1854.2,4.66699]
[1746209142075,2.73529,1854.3,1854.2,4.66705]
[1746209142380,6.86640936,1854.3,1854.2,4.60025]
[1746209145582,5.78821936,1854.3,1854.2,4.60025]
[1746209146081,6.86640936,1854.3,1854.2,4.60025]
[1746209147381,5.78821936,1854.3,1854.2,4.60025]
[1746209147581,6.86640936,1854.3,1854.2,4.60025]
[1746209147875,5.78821936,1854.3,1854.2,4.60025]
[1746209148081,6.86640936,1854.3,1854.2,4.60025]
[1746209149582,5.78821936,1854.3,1854.2,4.60025]
[1746209149778,4.13111936,1854.3,1854.2,4.60025]
[1746209149982,4.13111936,1854.3,1854.2,12.00235]
[1746209150182,0.43511936,1854.3,1854.2,12.00235]
[1746209150980,3.696,1854.5,1854.4,1.07813]
[1746209151181,1.6309,1854.9,1854.8,1.0779]
[1746209151483,1.6309,1854.9,1854.8,41.8779]
[1746209151675,1.07777,1855.1,1855.0,1.07778]
[1746209151875,2.70867,1855.1,1855.0,1.07778]
[1746209152077,6.40467,1855.1,1855.0,1.07778]
[1746209153178,5.3269,1855.1,1855.0,1.07778]
[1746209153582,3.696,1855.1,1855.0,2.70268]
[1746209154284,5.2967,1855.1,1855.0,2.70268]
[1746209155584,3.696,1855.1,1855.0,2.70268]
[1746209156286,5.3278,1855.1,1855.0,2.70268]
[1746209157982,3.696,1855.1,1855.0,6.21468]
[1746209159476,3.2078,1855.4,1855.0,6.21468]
[1746209159477,7.18159001,1855.8,1855.7,1.07738]
[1746209159678,8.78689001,1855.8,1855.7,1.07738]
[1746209160082,12.48289001,1855.8,1855.7,1.07738]
[1746209160284,10.87759001,1855.8,1855.7,2.80978]
[1746209160588,10.87759001,1855.8,1855.6,2.72209]
[1746209160784,1.6053,1855.7,1855.6,2.72209]
[1746209161281,5.3013,1855.7,1855.6,4.45449]
[1746209161497,6.37868,1855.7,1855.6,3.3771]
[1746209161691,5.3013,1855.7,1855.6,4.45454]
[1746209162889,6.37868,1855.7,1855.6,4.45454]
[1746209163188,6.80925385,1855.7,1855.6,4.45454]
[1746209163385,4.12657415,1855.7,1855.6,2.72214]
[1746209163883,5.82867415,1855.7,1855.4,5.2436]
[1746209164084,4.12657415,1855.7,1855.6,1.07744]
[1746209165187,5.20395415,1855.7,1855.6,1.07744]
[1746209165387,1.07744,1855.6,1855.5,2.81005]
[1746209165783,1.50801415,1855.6,1855.5,2.81005]
[1746209166285,5.20401415,1855.6,1855.5,2.81005]
[1746209167589,5.20401415,1855.6,1855.5,1.07745]
[1746209167792,1.07749,1855.5,1855.4,0.8319]
[1746209167985,1.07755,1855.4,1855.3,2.77847]
[1746209168299,5.20412415,1855.4,1855.3,2.77847]
[1746209168590,1.07761,1855.3,1855.2,1.07762]
[1746209169193,4.12657415,1855.3,1855.2,1.07762]
[1746209169388,5.20418415,1855.3,1855.2,2.72382]
[1746209169591,5.20361995,1855.3,1855.2,2.72382]
[1746209171889,5.20361995,1855.3,1855.2,2.78952]
[1746209174090,4.12600995,1855.3,1855.2,2.78952]
[1746209175399,5.20361995,1855.3,1855.2,2.78952]
[1746209176596,4.12600995,1855.3,1855.2,2.78952]
[1746209176896,5.20361995,1855.3,1855.2,2.78952]
[1746209177197,4.12600995,1855.3,1855.2,2.78952]
[1746209177396,5.20361995,1855.3,1855.2,2.78952]
[1746209177591,5.20361995,1855.3,1855.2,1.14332]
[1746209177797,5.20361995,1855.3,1855.2,0.0657]
[1746209178398,5.20361995,1855.3,1855.2,1.14337]
[1746209180898,5.20361995,1855.3,1855.2,0.0657]
[1746209181100,6.00361995,1855.3,1855.2,0.0657]
[1746209182697,6.00361995,1855.3,1855.2,1.14337]
[1746209183089,6.00361995,1855.3,1855.2,0.0657]
[1746209183295,6.00361995,1855.3,1855.2,1.14337]
[1746209184198,5.20361995,1855.3,1855.2,1.14337]
[1746209184698,4.12600995,1855.3,1855.2,1.14337]
[1746209184890,4.12600995,1855.3,1855.2,2.83797]
[1746209185098,4.12600995,1855.3,1855.2,7.83797]
[1746209185296,0.43000995,1855.3,1855.2,7.83797]
[1746209189907,0.43000995,1855.3,1855.2,2.83797]
[1746209190398,0.43000995,1855.3,1855.2,4.99407]
[1746209193704,0.00463408,1855.7,1855.2,9.99407]
[1746209193912,0.00463408,1855.7,1855.6,1.07744]
[1746209194113,3.70063408,1855.7,1855.6,4.58044]
[1746209194813,3.70063408,1855.7,1855.6,3.503]
[1746209195013,1.07744,1855.6,1855.5,1.7074]
[1746209195210,5.38765,1855.5,1855.2,2.1561]
[1746209195415,1.07761,1855.3,1855.2,2.1561]
[1746209195813,2.67151,1855.3,1855.2,2.1561]
[1746209196014,2.67151,1855.3,1855.2,3.23377]
[1746209196212,6.36751,1855.3,1855.2,3.23377]
[1746209196414,6.36751,1855.3,1855.2,2.1561]
[1746209197121,6.36751,1855.3,1855.2,3.29887]
[1746209197709,3.696,1855.3,1855.2,3.29887]
[1746209197916,3.696,1855.3,1855.2,6.50667]
[1746209198116,3.696,1855.3,1855.2,11.50667]
[1746209198619,3.696,1855.3,1855.2,6.50667]
[1746209198926,3.696,1855.3,1855.2,11.50667]
[1746209199121,1.08206408,1855.7,1855.6,1.07744]
[1746209199624,1.08201408,1855.7,1855.6,1.07744]